fUSD/lending_fUSD_20260518
["ID","MTS","AMOUNT","RATE_DAILY","PERIOD"]
[422571968,1779107439000,-401.36,0.00025944,7]
[422571971,1779107439000,-234.92,0.00025944,7]
[422571970,1779107439000,-278.84,0.00025944,7]
[422571969,1779107439000,-1134.82,0.00025944,7]
[422571974,1779107439000,-150.0,0.00025951,4]
[422571972,1779107439000,-400.78,0.00025944,7]
[422571973,1779107439000,-667.48583043,0.00025949,2]
[422571975,1779107439000,-1133.65,0.00025973,2]
[422571988,1779107439000,-278.84,0.00026001,2]
[422571980,1779107439000,-278.84,0.00025973,30]
[422571989,1779107439000,-234.92,0.00026001,2]
[422571978,1779107439000,-401.36,0.00025973,2]
[422571990,1779107439000,-400.78,0.00026001,2]
[422571991,1779107439000,-571.55093552,0.00026014,2]
[422571995,1779107439000,-1133.65,0.0002603,7]
[422571994,1779107439000,-152.0,0.00026027,2]
[422571993,1779107439000,-152.0,0.00026026,2]
[422571987,1779107439000,-1134.82,0.00026001,2]
[422571985,1779107439000,-234.67,0.00026001,2]
[422571996,1779107439000,-279.55,0.0002603,7]
[422571986,1779107439000,-401.36,0.00026001,2]
[422571992,1779107439000,-150.0,0.0002602,4]
[422571983,1779107439000,-1133.65,0.00026001,2]
[422572006,1779107439000,-234.67,0.00026058,7]
[422571982,1779107439000,-400.78,0.00025973,2]
[422571984,1779107439000,-279.55,0.00026001,2]
[422571979,1779107439000,-1134.82,0.00025973,2]
[422572062,1779107440000,-278.84,0.00026229,30]
[422572074,1779107440000,-234.92,0.00026258,2]
[422572065,1779107440000,-3254.4280323,0.00026245,2]
[422572066,1779107440000,-150.0,0.0002625,4]
[422572070,1779107440000,-234.67,0.00026258,2]
[422572076,1779107440000,-1133.83,0.00026287,7]
[422572073,1779107440000,-278.84,0.00026258,2]
[422572071,1779107440000,-401.36,0.00026258,2]
[422572068,1779107440000,-1133.65,0.00026258,2]
[422572075,1779107440000,-400.78,0.00026258,2]
[422572072,1779107440000,-1134.82,0.00026258,2]
[422572069,1779107440000,-279.55,0.00026258,2]
[422572082,1779107440000,-235.06,0.00026287,7]
[422572077,1779107440000,-279.73,0.00026287,7]
[422572081,1779107440000,-279.03,0.00026287,7]
[422572085,1779107440000,-150.0,0.00026293,4]
[422572079,1779107440000,-401.5,0.00026287,7]
[422572080,1779107440000,-1134.94,0.00026287,7]
[422572084,1779107440000,-190.62155702,0.0002629,2]
[422572083,1779107440000,-400.91,0.00026287,7]
[422572086,1779107440000,-157.1,0.00026296,2]
[422572078,1779107440000,-234.75,0.00026287,7]
[422572087,1779107440000,-200.0,0.000263,20]
[422572089,1779107440000,-600.0,0.00026356,7]
[422572091,1779107440000,-19035.00349485,0.00026356,2]
[422572064,1779107440000,-400.78,0.00026229,7]
[422572067,1779107440000,-150.0,0.0002625,4]
[422572060,1779107440000,-401.36,0.00026229,7]
[422572054,1779107440000,-234.92,0.00026201,7]
[422572059,1779107440000,-234.67,0.00026229,7]
[422572033,1779107440000,-234.67,0.00026144,2]
[422572041,1779107440000,-279.55,0.00026172,2]
[422572034,1779107440000,-401.36,0.00026144,2]
[422572032,1779107440000,-279.55,0.00026144,30]
[422572035,1779107440000,-1134.82,0.00026144,2]
[422572037,1779107440000,-234.92,0.00026144,2]
[422572036,1779107440000,-278.84,0.00026144,30]
[422572040,1779107440000,-1133.65,0.00026172,2]
[422572038,1779107440000,-400.78,0.00026144,2]
[422572039,1779107440000,-150.0,0.00026156,4]
[422572051,1779107440000,-401.36,0.00026201,7]
[422572042,1779107440000,-234.67,0.00026172,2]
[422572043,1779107440000,-401.36,0.00026172,2]
[422572052,1779107440000,-1134.82,0.00026201,7]
[422572053,1779107440000,-278.84,0.00026201,7]
[422572045,1779107440000,-278.84,0.00026172,2]
[422572044,1779107440000,-1134.82,0.00026172,2]
[422572049,1779107440000,-279.55,0.00026201,7]
[422572046,1779107440000,-234.92,0.00026172,2]
[422572050,1779107440000,-234.67,0.00026201,7]
[422572047,1779107440000,-400.78,0.00026172,2]
[422572048,1779107440000,-1133.65,0.00026201,7]
[422572056,1779107440000,-150.0,0.00026224,4]
[422572055,1779107440000,-400.78,0.00026201,7]
[422572057,1779107440000,-1133.65,0.00026229,7]
[422572058,1779107440000,-279.55,0.00026229,30]
[422572063,1779107440000,-234.92,0.00026229,7]
[422572061,1779107440000,-1134.82,0.00026229,7]
[422572088,1779107440000,-150.0,0.0002632,4]
[422572092,1779107440000,-150.0,0.00026361,4]
[422572094,1779107440000,-150.0,0.00026429,4]
[422572122,1779107440000,-150.0,0.000266,4]
[422572123,1779107440000,-150.0,0.00026634,4]
[422572120,1779107440000,-150.0,0.000266,4]
[422572128,1779107440000,-19035.00349485,0.00026871,2]
[422572129,1779107440000,-150.0,0.0002688,4]
[422572134,1779107440000,-500.0,0.00027,7]
[422572135,1779107440000,-610.82,0.00027,7]
[422572137,1779107440000,-500.0,0.00027,7]
[422572139,1779107440000,-500.0,0.00027,7]
[422572140,1779107440000,-500.0,0.00027,7]
[422572136,1779107440000,-500.0,0.00027,7]
[422572131,1779107440000,-150.0,0.0002695,4]
[422572121,1779107440000,-150.0,0.000266,4]
[422572133,1779107440000,-150.0,0.00026976,4]
[422572132,1779107440000,-150.0,0.0002695,4]
[422572138,1779107440000,-500.0,0.00027,7]
[422572142,1779107440000,-595.01,0.00027,7]
[422572146,1779107440000,-150.0,0.00027044,4]
[422572144,1779107440000,-172.0,0.00027,7]
[422572147,1779107440000,-502.0,0.00027073,5]
[422572145,1779107440000,-163.0,0.00027,3]
[422572143,1779107440000,-317.0,0.00027,7]
[422572148,1779107440000,-551.46,0.00027098,2]
[422572149,1779107440000,-500.0,0.00027098,2]
[422572150,1779107440000,-1500.0,0.000271,2]
[422572090,1779107440000,-1300.0,0.00026356,7]
[422572141,1779107440000,-500.0,0.00027,7]
[422572119,1779107440000,-150.0,0.000266,4]
[422572130,1779107440000,-150.0,0.00026907,4]
[422572115,1779107440000,-500.0,0.00026599,2]
[422572099,1779107440000,-200.0,0.00026429,2]
[422572118,1779107440000,-251337.835268,0.000266,2]
[422572093,1779107440000,-166.68,0.00026428,2]
[422572096,1779107440000,-200.0,0.00026429,2]
[422572100,1779107440000,-200.0,0.00026429,2]
[422572097,1779107440000,-200.0,0.00026429,2]
[422572095,1779107440000,-200.0,0.00026429,2]
[422572098,1779107440000,-200.0,0.00026429,2]
[422572112,1779107440000,-150.0,0.00026566,4]
[422572113,1779107440000,-551.46,0.00026599,2]
[422572114,1779107440000,-500.0,0.00026599,2]
[422572101,1779107440000,-200.0,0.00026429,2]
[422572106,1779107440000,-502.0,0.00026479,4]
[422572105,1779107440000,-338.0,0.00026464,2]
[422572102,1779107440000,-200.0,0.00026429,2]
[422572104,1779107440000,-2834.00252728,0.00026451,2]
[422572127,1779107440000,-150.0,0.00026839,4]
[422572125,1779107440000,-150.0,0.00026702,4]
[422572117,1779107440000,-500.0,0.00026599,2]
[422572124,1779107440000,-350.0,0.0002664,3]
[422572116,1779107440000,-500.0,0.00026599,2]
[422572107,1779107440000,-500.0,0.00026481,2]
[422572126,1779107440000,-150.0,0.00026771,4]
[422572110,1779107440000,-228.0,0.00026535,3]
[422572108,1779107440000,-150.0,0.00026498,4]
[422572111,1779107440000,-150.0,0.00026558,2]
[422572103,1779107440000,-269.0,0.00026429,2]
[422572109,1779107440000,-203.75847026,0.000265,7]
[422572229,1779107441000,-150.0,0.00027397,2]
[422572227,1779107441000,-267.02340513,0.00027397,2]
[422572224,1779107441000,-500.0,0.00027397,2]
[422572222,1779107441000,-500.0,0.00027397,2]
[422572220,1779107441000,-150.0,0.00027397,2]
[422572218,1779107441000,-500.0,0.00027397,2]
[422572202,1779107441000,-19035.00349485,0.00027385,2]
[422572204,1779107441000,-150.0,0.00027385,4]
[422572200,1779107441000,-1000.0,0.00027369,2]
[422572198,1779107441000,-1000.0,0.00027356,2]
[422572214,1779107441000,-500.0,0.00027397,2]
[422572196,1779107441000,-150.0,0.00027317,4]
[422572216,1779107441000,-500.0,0.00027397,2]
[422572237,1779107441000,-43141.42,0.00027397,10]
[422572265,1779107441000,-5100.0,0.000275,10]
[422572235,1779107441000,-526.82,0.00027397,2]
[422572233,1779107441000,-300.0,0.00027397,2]
[422572241,1779107441000,-35951.19,0.00027397,10]
[422572255,1779107441000,-1013.26893858,0.0002744,5]
[422572243,1779107441000,-29959.32,0.00027397,10]
[422572245,1779107441000,-24966.1,0.00027397,10]
[422572257,1779107441000,-1010.30981553,0.0002744,5]
[422572259,1779107441000,-150.0,0.0002744,7]
[422572261,1779107441000,-600.0,0.00027452,60]
[422572247,1779107441000,-800.0,0.000274,2]
[422572266,1779107441000,-459.67662177,0.00027515,7]
[422572264,1779107441000,-150.0,0.00027454,7]
[422572212,1779107441000,-307.75131602,0.00027397,2]
[422572231,1779107441000,-1500.0,0.00027397,2]
[422572253,1779107441000,-1135.50526747,0.0002744,5]
[422572152,1779107441000,-1500.0,0.000271,2]
[422572206,1779107441000,-151.0,0.00027394,7]
[422572153,1779107441000,-1500.0,0.000271,2]
[422572151,1779107441000,-1500.0,0.000271,2]
[422572155,1779107441000,-1500.0,0.000271,2]
[422572156,1779107441000,-1500.0,0.000271,2]
[422572154,1779107441000,-1500.0,0.000271,2]
[422572157,1779107441000,-1500.0,0.000271,2]
[422572165,1779107441000,-892.34,0.000271,2]
[422572168,1779107441000,-261.27,0.000271,7]
[422572161,1779107441000,-892.35,0.000271,2]
[422572170,1779107441000,-261.27,0.000271,7]
[422572158,1779107441000,-1500.0,0.000271,2]
[422572162,1779107441000,-892.35,0.000271,2]
[422572163,1779107441000,-892.35,0.000271,2]
[422572210,1779107441000,-577.26140885,0.00027396,2]
[422572160,1779107441000,-1734.927438,0.000271,2]
[422572172,1779107441000,-553.0,0.000271,7]
[422572182,1779107441000,-152.0,0.00027139,30]
[422572184,1779107441000,-2261.53452237,0.0002716,2]
[422572186,1779107441000,-150.0,0.0002718,4]
[422572176,1779107441000,-892.35,0.00027102,2]
[422572174,1779107441000,-892.35,0.00027101,2]
[422572180,1779107441000,-150.0,0.00027112,4]
[422572190,1779107441000,-150.0,0.00027249,4]
[422572188,1779107441000,-318.0,0.00027194,2]
[422572178,1779107441000,-892.34,0.00027103,2]
[422572192,1779107441000,-150.0,0.000273,4]
[422572194,1779107441000,-150.0,0.000273,4]
[422572208,1779107441000,-350.48013463,0.00027396,2]
[422572159,1779107441000,-1500.0,0.000271,2]
[422572251,1779107441000,-1000.0,0.00027425,7]
[422572297,1779107441000,-500.0,0.000278,7]
[422572263,1779107441000,-1300.0,0.00027452,60]
[422572298,1779107441000,-1700.0,0.000278,10]
[422572299,1779107441000,-1000.0,0.00027848,7]
[422572302,1779107441000,-162.0,0.0002788,5]
[422572306,1779107441000,-151.0,0.00027894,7]
[422572305,1779107441000,-1000.0,0.00027893,7]
[422572304,1779107441000,-150.0,0.00027886,2]
[422572308,1779107441000,-4742.5231396,0.00027897,2]
[422572318,1779107441000,-19035.00349485,0.000279,2]
[422572309,1779107441000,-85346.715215,0.00027897,2]
[422572311,1779107441000,-500.0,0.00027899,7]
[422572307,1779107441000,-37430.4069839,0.00027897,2]
[422572310,1779107441000,-551.46,0.00027899,120]
[422572313,1779107441000,-2834.00252728,0.000279,2]
[422572303,1779107441000,-162.0,0.0002788,5]
[422572317,1779107441000,-16598.11940285,0.000279,2]
[422572312,1779107441000,-1000.0,0.00027899,10]
[422572315,1779107441000,-667.17168438,0.000279,2]
[422572314,1779107441000,-1700.0,0.000279,10]
[422572321,1779107441000,-208.4913441,0.000279,5]
[422572323,1779107441000,-150.0,0.00027932,7]
[422572320,1779107441000,-1381.00271478,0.000279,2]
[422572324,1779107441000,-400.84192513,0.0002797,2]
[422572322,1779107441000,-812.30818366,0.00027925,2]
[422572325,1779107441000,-700.0,0.0002797,2]
[422572326,1779107441000,-1000.0,0.00027973,7]
[422572328,1779107441000,-190.62155702,0.0002799,2]
[422572327,1779107441000,-190.62155702,0.0002799,2]
[422572249,1779107441000,-957.42,0.000274,2]
[422572316,1779107441000,-175.44810339,0.000279,2]
[422572300,1779107441000,-150.0,0.0002786,2]
[422572319,1779107441000,-5485.32656074,0.000279,2]
[422572294,1779107441000,-1000.0,0.00027758,7]
[422572269,1779107441000,-1000.0,0.00027568,7]
[422572267,1779107441000,-152.0,0.0002752,5]
[422572278,1779107441000,-1000.0,0.00027667,5]
[422572268,1779107441000,-150.0,0.00027522,7]
[422572270,1779107441000,-150.0,0.0002759,7]
[422572271,1779107441000,-6800.0,0.000276,10]
[422572274,1779107441000,-150.0,0.0002765,7]
[422572273,1779107441000,-1000.0,0.00027634,7]
[422572275,1779107441000,-150.0,0.0002765,7]
[422572276,1779107441000,-150.0,0.00027659,7]
[422572277,1779107441000,-1000.0,0.0002766,7]
[422572280,1779107441000,-1000.0,0.0002767,14]
[422572292,1779107441000,-1000.0,0.00027741,7]
[422572291,1779107441000,-1000.0,0.00027739,60]
[422572272,1779107441000,-1000.0,0.00027622,7]
[422572301,1779107441000,-150.0,0.00027863,7]
[422572290,1779107441000,-150.0,0.00027727,7]
[422572296,1779107441000,-150.0,0.00027795,7]
[422572295,1779107441000,-1000.0,0.00027775,7]
[422572293,1779107441000,-1000.0,0.00027742,7]
[422572288,1779107441000,-291.54479,0.0002772,2]
[422572287,1779107441000,-291.54478,0.0002772,2]
[422572286,1779107441000,-1000.0,0.00027706,7]
[422572289,1779107441000,-291.54479,0.0002772,2]
[422572285,1779107441000,-500.0,0.00027705,2]
[422572282,1779107441000,-1000.0,0.00027696,7]
[422572281,1779107441000,-317.0,0.00027671,14]
[422572283,1779107441000,-1000.0,0.00027699,7]
[422572279,1779107441000,-502.0,0.00027668,5]
[422572284,1779107441000,-8600.0,0.000277,10]
[422572343,1779107442000,-551.46,0.00027999,120]
[422572336,1779107442000,-198.24523163,0.00027999,2]
[422572348,1779107442000,-551.46,0.00027999,120]
[422572346,1779107442000,-551.46,0.00027999,120]
[422572347,1779107442000,-551.46,0.00027999,120]
[422572344,1779107442000,-551.46,0.00027999,120]
[422572341,1779107442000,-551.46,0.00027999,120]
[422572342,1779107442000,-551.46,0.00027999,120]
[422572340,1779107442000,-551.46,0.00027999,120]
[422572329,1779107442000,-1000.0,0.00027996,7]
[422572337,1779107442000,-1102.65356766,0.00027999,15]
[422572333,1779107442000,-666.0,0.00027999,10]
[422572335,1779107442000,-300.0,0.00027999,10]
[422572334,1779107442000,-300.0,0.00027999,10]
[422572332,1779107442000,-300.0,0.00027999,10]
[422572330,1779107442000,-151.0,0.00027997,7]
[422572331,1779107442000,-1000.0,0.00027998,15]
[422572345,1779107442000,-551.46,0.00027999,120]
[422572339,1779107442000,-3219.28908123,0.00027999,2]
[422572350,1779107442000,-551.46,0.00027999,120]
[422572338,1779107442000,-1102.65356766,0.00027999,15]
[422572351,1779107442000,-551.46,0.00027999,120]
[422572349,1779107442000,-551.46,0.00027999,120]
[422572369,1779107442000,-388.60467735,0.00028,120]
[422572368,1779107442000,-1243.58784687,0.00028,120]
[422572367,1779107442000,-450.0,0.00028,120]
[422572365,1779107442000,-1000.0,0.00027999,2]
[422572364,1779107442000,-1000.0,0.00027999,120]
[422572361,1779107442000,-500.0,0.00027999,2]
[422572360,1779107442000,-475.35162455,0.00027999,7]
[422572359,1779107442000,-500.0,0.00027999,7]
[422572366,1779107442000,-94262.07612894,0.00028,120]
[422572362,1779107442000,-500.0,0.00027999,2]
[422572357,1779107442000,-551.50539431,0.00027999,120]
[422572358,1779107442000,-150.0,0.00027999,20]
[422572356,1779107442000,-551.46,0.00027999,120]
[422572355,1779107442000,-551.46,0.00027999,120]
[422572353,1779107442000,-551.46,0.00027999,120]
[422572354,1779107442000,-551.46,0.00027999,120]
[422572352,1779107442000,-551.46,0.00027999,120]
[422572363,1779107442000,-500.0,0.00027999,2]
[422572370,1779107442000,-1534.25015968,0.00028,120]
[422572375,1779107443000,-260.97124447,0.00028,120]
[422572374,1779107443000,-1780.92819847,0.00028,120]
[422572377,1779107443000,-234.62,0.00025745,2]
[422572380,1779107443000,-600.0,0.0002716,2]
[422572376,1779107443000,-278.74,0.00025745,2]
[422572379,1779107443000,-9721.25990001,0.00028,120]
[422572378,1779107443000,-278.74,0.00025773,7]
[422572408,1779107446000,-400.78,0.00025745,2]
[422572409,1779107446000,-1133.38,0.00025745,2]
[422572410,1779107446000,-234.62,0.00025773,7]
[422572411,1779107446000,-400.78,0.00025773,7]
[422572412,1779107446000,-1133.38,0.00025773,7]
[422572414,1779107446000,-234.62,0.00025802,2]
[422572413,1779107446000,-278.74,0.00025802,30]
[422572416,1779107446000,-707.22392515,0.00025802,2]
[422572417,1779107446000,-601.18,0.00024658,2]
[422572419,1779107446000,-278.74,0.0002583,2]
[422572420,1779107446000,-50.92392515,0.0002583,2]
[422572418,1779107446000,-426.15607485,0.00025802,2]
[422572415,1779107446000,-400.78,0.00025802,2]
[422572423,1779107547000,190.79,0.00015,120]
[422572424,1779107828000,500.0,0.000271,120]
[422572425,1779107851000,500.0,0.000271,120]
[422572426,1779107874000,500.0,0.000271,120]
[422572427,1779107915000,222.6,0.000271,120]
[422572428,1779107934000,500.0,0.000271,120]
[422572430,1779108035000,215.78,0.00025876,120]
[422572465,1779108632000,-157.0,0.00021,2]
[422572464,1779108632000,-500.0,0.00020064,2]
[422572462,1779108632000,-189.0,0.0002,2]
[422572460,1779108632000,-157.0,0.0002,2]
[422572461,1779108632000,-185.0,0.0002,2]
[422572456,1779108632000,-170.02119813,0.0001729,2]
[422572459,1779108632000,-500.0,0.00019999,2]
[422572455,1779108632000,-159.0,0.0001629,2]
[422572454,1779108632000,-250.0,0.00015358,2]
[422572463,1779108632000,-319.0,0.0002,2]
[422572458,1779108632000,-538.0,0.00019998,2]
[422572448,1779108632000,-300.0,0.00013979,2]
[422572453,1779108632000,-420.0,0.00015315,2]
[422572450,1779108632000,-4352.0830487,0.0001398,5]
[422572451,1779108632000,-988.38209255,0.0001398,5]
[422572452,1779108632000,-250.0,0.00014,2]
[422572449,1779108632000,-26732.43617281,0.0001398,5]
[422572447,1779108632000,-2500.0,0.00013779,2]
[422572446,1779108632000,-2500.0,0.00013779,2]
[422572444,1779108632000,-2500.0,0.00013779,2]
[422572445,1779108632000,-2500.0,0.00013779,2]
[422572443,1779108632000,-153.26,0.00011623,2]
[422572468,1779108632000,-319.0,0.00021,2]
[422572457,1779108632000,-294.6376,0.00019899,2]
[422572467,1779108632000,-189.0,0.00021,2]
[422572466,1779108632000,-185.0,0.00021,2]
[422572471,1779108632000,-162.0,0.00022,2]
[422572469,1779108632000,-153.88,0.00021918,2]
[422572502,1779108632000,-783.0,0.00023152,2]
[422572501,1779108632000,-398.88322617,0.00023152,2]
[422572499,1779108632000,-597.23799029,0.00023025,2]
[422572494,1779108632000,-189.0,0.00023,2]
[422572492,1779108632000,-185.0,0.00023,2]
[422572490,1779108632000,-184.0,0.00023,2]
[422572488,1779108632000,-152.0,0.00022873,7]
[422572497,1779108632000,-215.78,0.00023001,2]
[422572498,1779108632000,-570.82010791,0.00023025,2]
[422572496,1779108632000,-319.0,0.00023,2]
[422572486,1779108632000,-152.0,0.00022873,7]
[422572500,1779108632000,-3831.9419018,0.00023025,2]
[422572474,1779108632000,-319.0,0.00022,2]
[422572484,1779108632000,-154.74,0.0002284,2]
[422572503,1779108632000,-503.70314734,0.00023152,2]
[422572473,1779108632000,-189.0,0.00022,2]
[422572476,1779108632000,-6056.0,0.00022041,2]
[422572477,1779108632000,-200.0,0.00022252,2]
[422572481,1779108632000,-166.66,0.00022823,30]
[422572472,1779108632000,-185.0,0.00022,2]
[422572475,1779108632000,-1224.0,0.00022041,2]
[422572470,1779108632000,-215.11887611,0.00021932,2]
[422572478,1779108632000,-166.66,0.00022352,30]
[422572479,1779108632000,-150.48,0.00022657,2]
[422572534,1779108638000,-900.0,0.00024397,9]
[422572538,1779108638000,-900.0,0.00024397,9]
[422572540,1779108638000,-125.9425555,0.00024397,9]
[422572541,1779108638000,-179.2106375,0.00024397,9]
[422572542,1779108638000,-720.7893625,0.00024397,9]
[422572544,1779108638000,-798.5693625,0.00024397,9]
[422572543,1779108638000,-101.4306375,0.00024397,9]
[422572545,1779108638000,-900.0,0.00024397,9]
[422572546,1779108638000,-163.0,0.00024397,2]
[422572547,1779108638000,-163.0,0.00024397,2]
[422572548,1779108638000,-184.0,0.000244,2]
[422572551,1779108638000,-14197.67259765,0.0002465,2]
[422572550,1779108638000,-228.0,0.00024555,3]
[422572552,1779108638000,-13919.64425662,0.0002465,2]
[422572553,1779108638000,-1794.26824573,0.0002465,2]
[422572554,1779108638000,-150.47,0.00024667,2]
[422572555,1779108638000,-166.66,0.00024705,30]
[422572556,1779108638000,-10000.0,0.0002475,2]
[422572559,1779108638000,-385.0,0.00024951,2]
[422572537,1779108638000,-806.63330744,0.00024397,9]
[422572549,1779108638000,-300.0,0.000244,10]
[422572539,1779108638000,-774.0574445,0.00024397,9]
[422572526,1779108638000,-319.0,0.00024,2]
[422572535,1779108638000,-900.0,0.00024397,9]
[422572513,1779108638000,-157.846,0.00022041,2]
[422572516,1779108638000,-166.66,0.00023701,2]
[422572517,1779108638000,-153.88,0.00023744,2]
[422572515,1779108638000,-166.66,0.00023293,30]
[422572514,1779108638000,-314.41362649,0.00023152,2]
[422572518,1779108638000,-500.0,0.00023749,2]
[422572519,1779108638000,-500.0,0.00023749,2]
[422572525,1779108638000,-189.0,0.00024,2]
[422572528,1779108638000,-799.8,0.00024174,2]
[422572521,1779108638000,-242.67409031,0.0002397,2]
[422572529,1779108638000,-166.66,0.00024234,30]
[422572558,1779108638000,-427.0,0.00024879,2]
[422572527,1779108638000,-551.78,0.00024174,2]
[422572520,1779108638000,-166.66,0.00023764,30]
[422572522,1779108638000,-303.89308898,0.0002397,2]
[422572524,1779108638000,-185.0,0.00024,2]
[422572523,1779108638000,-153.43282071,0.0002397,2]
[422572531,1779108638000,-151.0,0.00024324,2]
[422572530,1779108638000,-200.0,0.000243,10]
[422572533,1779108638000,-524.70855744,0.0002437,2]
[422572532,1779108638000,-175.29144256,0.0002437,2]
[422572536,1779108638000,-93.36669256,0.00024397,9]
[422572557,1779108638000,-1000.0,0.0002483,2]
[422572567,1779108638000,-1181.085,0.00025041,2]
[422572561,1779108638000,-7789.57673992,0.0002499,2]
[422572596,1779108638000,-500.0,0.00025456,2]
[422572584,1779108638000,-150.0,0.00025415,4]
[422572560,1779108638000,-700.0,0.0002497,2]
[422572598,1779108638000,-500.0,0.00025456,2]
[422572599,1779108638000,-500.0,0.00025456,2]
[422572601,1779108638000,-500.0,0.00025456,2]
[422572600,1779108638000,-500.0,0.00025456,2]
[422572603,1779108638000,-500.0,0.00025456,2]
[422572602,1779108638000,-500.0,0.00025456,2]
[422572605,1779108638000,-500.0,0.00025456,2]
[422572604,1779108638000,-500.0,0.00025456,2]
[422572609,1779108638000,-500.0,0.00025456,2]
[422572606,1779108638000,-500.0,0.00025456,2]
[422572608,1779108638000,-500.0,0.00025456,2]
[422572607,1779108638000,-500.0,0.00025456,2]
[422572611,1779108638000,-500.0,0.00025456,2]
[422572610,1779108638000,-500.0,0.00025456,2]
[422572612,1779108638000,-500.0,0.00025456,2]
[422572615,1779108638000,-500.0,0.00025456,2]
[422572613,1779108638000,-500.0,0.00025456,2]
[422572614,1779108638000,-500.0,0.00025456,2]
[422572586,1779108638000,-150.0,0.00025438,4]
[422572590,1779108638000,-151.71962966,0.00025456,2]
[422572588,1779108638000,-500.0,0.00025456,2]
[422572593,1779108638000,-500.0,0.00025456,2]
[422572563,1779108638000,-195.0,0.00025,2]
[422572562,1779108638000,-500.0,0.00024999,2]
[422572564,1779108638000,-189.0,0.00025,2]
[422572565,1779108638000,-323.0,0.00025,2]
[422572566,1779108638000,-1223.0,0.00025041,2]
[422572591,1779108638000,-500.0,0.00025456,2]
[422572569,1779108638000,-150.0,0.000252,4]
[422572568,1779108638000,-150.0,0.000252,4]
[422572571,1779108638000,-150.0,0.000252,4]
[422572575,1779108638000,-150.0,0.000252,4]
[422572570,1779108638000,-150.0,0.000252,4]
[422572576,1779108638000,-150.0,0.0002526,4]
[422572573,1779108638000,-150.0,0.000252,4]
[422572572,1779108638000,-150.0,0.000252,4]
[422572577,1779108638000,-850.20075822,0.00025315,2]
[422572578,1779108638000,-150.0,0.00025319,4]
[422572579,1779108638000,-2500.0,0.00025357,2]
[422572580,1779108638000,-150.0,0.00025379,4]
[422572581,1779108638000,-20023.45858908,0.00025398,2]
[422572582,1779108638000,-178.46806593,0.00025398,2]
[422572597,1779108638000,-500.0,0.00025456,2]
[422572574,1779108638000,-150.0,0.000252,4]
[422572623,1779108639000,-308.46731456,0.00025456,2]
[422572622,1779108639000,-500.0,0.00025456,2]
[422572620,1779108639000,-500.0,0.00025456,2]
[422572617,1779108639000,-204.5731391,0.00025456,2]
[422572627,1779108639000,-500.0,0.00025456,2]
[422572618,1779108639000,-500.0,0.00025456,2]
[422572621,1779108639000,-500.0,0.00025456,2]
[422572619,1779108639000,-500.0,0.00025456,2]
[422572616,1779108639000,-500.0,0.00025456,2]
[422572628,1779108639000,-500.0,0.00025456,2]
[422572625,1779108639000,-500.0,0.00025456,2]